[Event "XTX Markets London Masters 2024"]
[Site "London"]
[Date "2024.11.30"]
[Round "3.8"]
[White "Fodor, Tamas Jr."]
[Black "Wells, Peter K"]
[Result "0-1"]
[ECO "D31"]
[WhiteElo "2518"]
[BlackElo "2351"]
[Annotator "TA"]
[PlyCount "100"]
[EventDate "2024.11.28"]
[EventType "swiss"]
[EventCountry "ENG"]
[SourceTitle "playchess.com"]
[Source "ChessBase"]
[SourceQuality "1"]
[TimeControl "40/5400+30:1800+30"]

{[%evp 41,100,-24,173,173,143,-86,-118,-122,-72,-291,-302,-376,-384,-384,-423,-395,0,0,0,0,0,0,0,0,0,0,0,-488,-481,-464,-455,-29984,-29985,-29981,-927,-1635,-1658,-1079,-727,-845,-1656,-1815,-1682,-6613,-1017,-2426,-1689,-4053,-2339,-29961,-29964,-5206,-4633,-29974,-29975,-29974,-29976,-29982,-29983,-29982,-29981]} 1. d4 {[%emt 0:00:16]} d5 {[%emt 0:01:47]} 2. c4 {[%emt 0:00:07]} e6 {[%emt 0:00:08]} 3. Nc3 {[%emt 0:00:06]} c6 {[%emt 0:00:09]} 4. e4 {[%emt 0:01:39]} dxe4 {[%emt 0:00:34]} 5. Nxe4 {[%emt 0:00:06]} Bb4+ {[%emt 0:00:57]} 6. Bd2 {[%emt 0:00:05]} Qxd4 {[%emt 0:00:35]} 7. Bxb4 {[%emt 0:00:05]} Qxe4+ {[%emt 0:00:04]} 8. Be2 {[%emt 0:00:07]} Nd7 {[%emt 0:08:09]} 9. Qd6 {[%emt 0:05:56]} a5 {[%emt 0:11:26]} 10. Bc3 {[%emt 0:02:06]} Ne7 {[%emt 0:04:06]} 11. Nf3 {[%emt 0:06:03]} c5 {[%emt 0:12:42]} 12. Rd1 {[%emt 0:09:27]} Ra6 {[%emt 0:13:33]} 13. Qd2 {[%emt 0:01:12]} O-O {[%emt 0:01:59]} 14. O-O {[%emt 0:06:29]} f6 {[%emt 0:05:37]} 15. Bd3 {[%emt 0:03:00]} Qg4 {[%emt 0:01:15]} 16. Bxa5 {[%emt 0:10:23]} e5 {[%emt 0:05:57]} 17. Rfe1 {[%emt 0:00:28]} Ng6 {[%emt 0:08:13]} 18. h3 {[%emt 0:02:16]} Qh5 {[%emt 0:01:37]} 19. Be4 {[%emt 0:08:30]} Nf4 {[%emt 0:01:54]} 20. g3 {[%emt 0:00:06]} Nxh3+ {[%emt 0:09:55]} 21. Kg2 {[%emt 0:00:04]} f5 $2 {[%emt 0:00:52]} (21... Kh8 $11 22. Rh1 Qg4 23. Bxh7 Nb8 (23... Qxc4 $2 24. Rxh3 Qe6 25. Rdh1 $18)) 22. Bd5+ $18 {[%emt 0:08:47]} Kh8 {[%emt 0:00:03]} 23. Rh1 $2 {[%emt 0:01:05]} (23. Nxe5 $16 {is necessary to keep the advantage.} Nxf2 24. Kxf2) 23... e4 $1 $17 {[%emt 0:05:44]} 24. Nh4 {[%emt 0:03:22] [#]} Rxa5 {[%emt 0:03:09]} ({Better is} 24... Ng5 $1 {[%cal Og5f3][%mdl 512] Hoping for ...Nf3!} 25. Bc3 Nf6 (25... Rxa2 $2 26. Bxg7+ Kxg7 27. Nxf5+ Rxf5 28. Rxh5 $18)) 25. Rxh3 $2 {[%emt 0:03:50]} (25. Qxa5 $17 Nf4+ 26. gxf4 Qg4+ 27. Kf1 Qxd1+ 28. Kg2 Qg4+ 29. Kf1) 25... Ra6 $1 $19 {[%emt 0:00:01]} (25... Rxa2 26. Be6 Nf6 27. Qd8 $11) 26. Rhh1 {[%emt 0:03:01]} g5 {[%emt 0:01:13]} (26... Rxa2 27. Be6 Nf6 28. Qd8 $14) 27. Bxb7 {[%emt 0:06:29]} Bxb7 {[%emt 0:01:43]} 28. Qxd7 {[%emt 0:00:01]} Qf7 $2 {[%emt 0:00:33]} (28... gxh4 $19 29. Rxh4 Qf7) 29. Qxf7 $11 {[%emt 0:00:41]} Rxf7 {[%emt 0:00:03]} 30. Rd8+ {[%emt 0:00:04]} Kg7 {[%emt 0:00:04]} 31. Nxf5+ $1 {[%emt 0:00:04]} Rxf5 {[%emt 0:01:02]} 32. Rd7+ {[%emt 0:00:04]} Kg6 {[%emt 0:00:27]} (32... Rf7 $2 33. Rxh7+ Kxh7 34. Rxf7+ Kg6 35. Rxb7 $18) 33. Rxb7 {[%emt 0:00:08]} Raf6 {[%emt 0:00:23]} 34. Rhxh7 $2 {[%emt 0:00:33][%mdl 8192]} (34. Rf1 $11 {and White stays safe.}) 34... Rxf2+ $19 {[%emt 0:00:21]} 35. Kh3 {[%emt 0:01:33]} Kf5 {[%emt 0:00:49]} 36. g4+ {[%emt 0:02:46] [#]} (36. Rbg7 $19 e3 (36... Rxb2 $2 37. Rh5 $19) 37. Rh5) 36... Ke5 $1 {[%emt 0:00:22]} (36... Kf4 37. Rhf7 Ke5 38. Rxf6 Rxf6 (38... Kxf6 39. Rd7 $11) 39. Kg2 $19) 37. Rb3 {[%emt 0:01:58]} R2f3+ {[%emt 0:00:54]} (37... Kf4 $142 38. Rg3 Rf3 (38... Rxb2 $2 39. Rg2 $19) 39. Rxf3+ Kxf3 40. Kh2 e3 (40... Kxg4 $2 41. Kg2 $19) 41. Kg1 e2 (41... Kxg4 $2 42. Kg2 $19) 42. Re7 Rf4 (42... Kxg4 43. Rxe2 Rd6 44. Kg2 $11) 43. Re8 Rd4 (43... Rxc4 44. Kh2 Re4 45. Rf8+ Kxg4 46. Kg2 e1=Q 47. Rf2 Kh4 48. Rf1 Re2+ 49. Kg1 Qg3+ 50. Kh1 Qh2#) 44. Kh2 Re4 (44... Rxg4 45. b4 Kf2 46. Rf8+ Rf4 47. Rxf4+ gxf4 48. Kh3 e1=Q 49. Kg4 f3 50. bxc5 Kg2 51. c6 f2 52. c7 f1=Q 53. c8=Q Qg3+ 54. Kh5 Qh1+ 55. Qh3+ Qhxh3#) 45. Rf8+ Kxg4 (45... Ke3 46. Kg2 e1=Q 47. Rf3+ Ke2 48. Rg3 Qf2+ 49. Kh1 Qxg3 50. b3 Qh4+ 51. Kg2 Rxg4#) 46. Kg1 Kg3 (46... e1=B $2 47. Rd8 $19) (46... e1=Q+ 47. Rf1 Kg3 48. a4 Qe3+ 49. Rf2 Qxf2+ 50. Kh1 Rh4#) 47. Rf5 e1=Q+ (47... e1=B $2 48. Rxg5+ Kf3 49. Rf5+ Ke2 50. b3 $19) 48. Rf1 Qe3+ 49. Rf2 Qxf2+ 50. Kh1 Rh4#) 38. Kg2 $19 {[%emt 0:00:47]} Rxb3 {[%emt 0:00:31]} 39. axb3 {[%emt 0:00:01] [#]} e3 $1 {[%emt 0:00:36]} 40. b4 {[%emt 0:00:58]} cxb4 {[%emt 0:00:17]} 41. c5 {[%emt 0:33:58]} Kd4 {[%emt 0:06:41]} 42. Re7 {[%emt 0:00:00]} Rf2+ {[%emt 0:05:07]} (42... Kxc5 43. Rxe3 Kd4 44. Rb3 $17) (42... b3 $142 43. Re8 Kd3 (43... Kxc5 44. Rxe3 Kc4 45. Rc3+ Kb4 46. Rc8 $11) (43... Rf2+ $2 44. Kg3 $19) 44. Rd8+ Kc2) 43. Kg3 $19 {[%emt 0:00:00]} Rxb2 {[%emt 0:02:43]} ({And not} 43... Kxc5 44. Rxe3 Rd2 (44... Rxb2 45. Re5+ Kc4 46. Rxg5 $11) 45. Re5+ Rd5 46. Re4 $11) 44. c6 {[%emt 0:00:00]} Rc2 {[%emt 0:01:01]} 45. Kf3 {[%emt 0:00:00]} Rxc6 {[%emt 0:05:18]} 46. Re4+ {[%emt 0:00:00]} Kc5 {[%emt 0:09:38]} 47. Kxe3 {[%emt 0:00:00]} b3 {[%emt 0:01:20]} 48. Kd2 {[%emt 0:00:00]} b2 {[%emt 0:00:29]} 49. Re5+ {[%emt 0:00:00]} Kc4 {[%emt 0:00:35]} 50. Re1 {[%emt 0:00:00]} Kb3 {[%emt 0:00:17]} 0-1

[Event "XTX Markets London Masters 2024"]
[Site "London"]
[Date "2024.11.30"]
[Round "3.10"]
[White "Ghasi, Ameet K"]
[Black "Yoon, Jacob D"]
[Result "1-0"]
[ECO "A07"]
[WhiteElo "2503"]
[BlackElo "2270"]
[Annotator "TA"]
[PlyCount "127"]
[EventDate "2024.11.28"]
[EventType "swiss"]
[EventCountry "ENG"]
[SourceTitle "playchess.com"]
[Source "ChessBase"]
[SourceQuality "1"]
[TimeControl "40/5400+30:1800+30"]

{[%evp 14,127,-2,0,37,27,26,19,47,46,49,41,44,48,41,22,36,14,91,94,87,82,98,97,81,82,88,91,92,104,121,52,126,122,135,136,131,127,122,125,165,179,181,174,257,260,257,256,285,296,261,281,263,200,197,212,194,141,125,125,134,137,126,139,143,129,147,149,134,133,266,253,253,275,283,275,338,338,338,288,247,33,338,97,338,338,345,345,1135,338,345,345,345,171,1108,1108,915,8,8,8,2106,1444,3388,4186,5093,9270,29962,9270,29985,29986,29986,29987,29988,29989,29990,29991]} 1. Nf3 {[%emt 0:03:30]} d5 {[%emt 0:00:19]} 2. g3 {[%emt 0:00:31]} Bg4 {[%emt 0:00:05]} 3. Bg2 {[%emt 0:00:07]} Nd7 {[%emt 0:00:03]} 4. O-O {[%emt 0:00:12]} Ngf6 {[%emt 0:00:09]} 5. d3 {[%emt 0:02:02]} c6 {[%emt 0:02:22]} 6. Qe1 {[%emt 0:00:50]} e5 {[%emt 0:00:10]} 7. h3 {[%emt 0:01:06]} Bh5 {[%emt 0:00:47]} 8. Nh4 {[%emt 0:00:19]} Bg6 {[%emt 0:07:40]} 9. Nd2 {[%emt 0:07:11]} Bc5 {[%emt 0:00:06]} 10. e4 {[%emt 0:01:25]} dxe4 {[%emt 0:02:32]} 11. Nxg6 {[%emt 0:08:51]} hxg6 {[%emt 0:00:08]} 12. dxe4 {[%emt 0:02:14]} b5 {[%emt 0:04:12]} 13. a4 {[%emt 0:02:34]} a6 {[%emt 0:00:46]} 14. Nb3 {[%emt 0:03:54]} Bb6 {[%emt 0:02:40]} 15. axb5 {[%emt 0:08:54]} axb5 {[%emt 0:00:07]} (15... cxb5 $11 {keeps the balance.} 16. Qb4 Qc7) 16. Rxa8 $16 {[%emt 0:00:34]} Qxa8 {[%emt 0:00:06]} 17. Qb4 {[%emt 0:00:04]} Qa6 {[%emt 0:08:24]} 18. Qd6 $1 {[%emt 0:09:10]} Bd8 {[%emt 0:00:08]} 19. Be3 {[%emt 0:08:25]} Be7 {[%emt 0:00:23]} 20. Qd2 {[%emt 0:03:33]} c5 {[%emt 0:04:26]} 21. Ra1 {[%emt 0:03:04]} Qc6 {[%emt 0:00:01] [#]} 22. c4 {[%emt 0:09:10]} (22. g4 $1 $16 {[%mdl 512]}) 22... O-O {[%emt 0:03:56]} (22... b4 $1 $14) 23. Na5 $16 {[%emt 0:01:39]} Qb6 {[%emt 0:00:57]} 24. cxb5 {[%emt 0:00:29]} Qxb5 {[%emt 0:01:34]} 25. Bf1 {[%emt 0:00:37]} Qb6 {[%emt 0:00:02]} 26. b4 {[%emt 0:08:08]} Nb8 {[%emt 0:08:03]} 27. b5 {[%emt 0:01:50]} Nxe4 {[%emt 0:06:23] [#]} 28. Qd5 $1 {[%emt 0:00:31]} Ng5 {[%emt 0:00:01]} (28... Nf6 $142 29. Qb3 (29. Qxe5 Re8 $18) 29... e4) 29. Nc4 $18 {[%emt 0:06:12]} (29. Qxe5 $2 Nf3+ 30. Kg2 Nxe5 $19) 29... Qe6 {[%emt 0:09:40]} 30. Qxe6 {[%emt 0:00:45]} (30. Qxe5 $2 Nf3+ (30... Nxh3+ $2 31. Bxh3 Qxc4 32. Qxe7 $18) 31. Kh1 Nxe5 $19) 30... Nxe6 {[%emt 0:00:02]} 31. Ra7 {[%emt 0:00:35]} ({Resist} 31. Nxe5 $6 Bf6 $16) 31... Bf6 {[%emt 0:01:12]} 32. Nd6 {[%emt 0:01:25]} Rd8 {[%emt 0:26:35]} 33. Nxf7 {[%emt 0:01:14]} Rd1 {[%emt 0:00:38]} 34. Kg2 {[%emt 0:01:20]} Rd7 {[%emt 0:00:06]} 35. Rxd7 {[%emt 0:01:51]} ({Better is} 35. Ra8 $18 {Ng5 would now be deadly.} Kxf7 36. Rxb8) 35... Nxd7 $16 {[%emt 0:00:01]} 36. Nd6 {[%emt 0:00:18]} Nd4 {[%emt 0:00:27]} 37. Bd3 {[%emt 0:01:13]} Kf8 {[%emt 0:00:05]} 38. Bxg6 {[%emt 0:02:13]} Be7 {[%emt 0:00:01]} 39. Nc4 {[%emt 0:00:36]} (39. Bf5 Nb6 40. Nc8 Nxc8 41. Bxc8 Nxb5) 39... Nxb5 {[%emt 0:01:02]} 40. Bf5 {[%emt 0:00:17]} Ke8 {[%emt 0:00:53]} 41. h4 {[%emt 0:03:02]} Nd6 {[%emt 0:09:04] [#]} (41... Kd8 $16 42. Be6 e4) 42. Bxd7+ $1 $18 {[%emt 0:08:14]} Kxd7 {[%emt 0:01:08]} 43. Nxe5+ {[%emt 0:00:08]} Ke6 {[%emt 0:00:03]} 44. Ng6 {[%emt 0:00:13]} c4 {[%emt 0:00:03]} 45. Nxe7 {[%emt 0:02:40]} Kxe7 {[%emt 0:01:08]} 46. Kf3 {[%emt 0:00:20]} Ke6 {[%emt 0:00:57]} 47. h5 $2 {[%emt 0:05:14]} (47. Bc5 $18) 47... Kd5 $2 {[%emt 0:03:32][%mdl 8192]} ({Black should try} 47... c3 $1 $14) 48. Ke2 $2 {[%emt 0:09:18]} (48. g4 $18 {is the precise move to win.}) 48... Nb5 $2 {[%emt 0:11:29]} (48... Ne4 $16 {was worth a try.}) 49. g4 $18 {[%emt 0:00:40]} Nc3+ {[%emt 0:00:44]} 50. Kf3 {[%emt 0:02:38]} Nd1 $2 {[%emt 0:06:58]} (50... Ke5 51. Bc5 Nd1) 51. Bc1 $2 {[%emt 0:01:34]} (51. g5) 51... c3 {[%emt 0:00:41]} 52. Ke2 {[%emt 0:01:50]} Nb2 {[%emt 0:01:09]} 53. f3 {[%emt 0:01:24]} (53. Be3 $142) 53... Kd4 $2 {[%emt 0:02:51]} (53... Ke6 54. Bf4 c2) 54. Be3+ $18 {[%emt 0:00:34]} Kd5 {[%emt 0:02:06]} 55. f4 $2 {[%emt 0:00:39]} (55. g5 $18 {h6 would kill now.} Ke5 56. g6) 55... c2 $11 {[%emt 0:06:35]} 56. Bc1 {[%emt 0:00:32]} (56. g5 $5 Nc4 $8 57. Bc1 $11) 56... Na4 $2 {[%emt 0:02:01][%mdl 8192]} (56... Ke4 $11) 57. Kd3 $18 {[%emt 0:00:33]} Nc5+ {[%emt 0:00:09]} 58. Kxc2 {[%emt 0:00:09]} Ke4 {[%emt 0:00:42]} 59. f5 {[%emt 0:00:12]} Nd3 {[%emt 0:00:56]} 60. g5 {[%emt 0:01:43]} Ne5 {[%emt 0:00:30]} 61. f6 {[%emt 0:00:00]} gxf6 {[%emt 0:00:15]} 62. g6 {[%emt 0:00:00]} Nc6 {[%emt 0:00:30]} 63. g7 {[%emt 0:00:17]} Ne7 {[%emt 0:00:04]} 64. h6 {[%emt 0:00:04]} 1-0

[Event "XTX Markets London Masters 2024"]
[Site "London"]
[Date "2024.11.30"]
[Round "3.11"]
[White "Badacsonyi, Stanley"]
[Black "Gonzalez Garcia, Jose"]
[Result "1/2-1/2"]
[ECO "E52"]
[WhiteElo "2298"]
[BlackElo "2465"]
[Annotator "ChessBase"]
[PlyCount "34"]
[EventDate "2024.11.28"]
[EventType "swiss"]
[EventCountry "ENG"]
[SourceTitle "playchess.com"]
[Source "ChessBase"]
[SourceQuality "1"]
[TimeControl "40/5400+30:1800+30"]

1. d4 {[%emt 0:00:02]} Nf6 {[%emt 0:00:53]} 2. c4 {[%emt 0:00:05]} e6 {[%emt 0:00:15]} 3. Nc3 {[%emt 0:00:05]} Bb4 {[%emt 0:00:33]} 4. e3 {[%emt 0:00:07]} O-O {[%emt 0:00:44]} 5. Bd2 {[%emt 0:00:05]} d5 {[%emt 0:00:45]} 6. Nf3 {[%emt 0:00:16]} b6 {[%emt 0:02:39]} 7. Bd3 {[%emt 0:00:29]} Bb7 {[%emt 0:07:31]} 8. cxd5 {[%emt 0:00:20]} exd5 {[%emt 0:00:19]} 9. O-O {[%emt 0:00:10]} Re8 {[%emt 0:01:49]} 10. Ne5 {[%emt 0:03:01]} c5 {[%emt 0:07:40]} 11. a3 {[%emt 0:01:22]} Bxc3 {[%emt 0:04:33]} 12. Bxc3 {[%emt 0:00:09]} Ba6 {[%emt 0:01:29]} 13. dxc5 {[%emt 0:05:58]} bxc5 {[%emt 0:00:57]} 14. Re1 {[%emt 0:00:27]} Qd6 {[%emt 0:05:55]} 15. Bxa6 {[%emt 0:02:08]} Nxa6 {[%emt 0:05:02]} 16. Nc4 {[%emt 0:00:34]} Qe6 {[%emt 0:00:12]} 17. Bxf6 {[%emt 0:00:11]} dxc4 {[%emt 0:00:58]} 1/2-1/2

[Event "XTX Markets London Masters 2024"]
[Site "London"]
[Date "2024.11.30"]
[Round "3.12"]
[White "Efroimski, Marsel"]
[Black "Pert, Max"]
[Result "0-1"]
[ECO "B15"]
[WhiteElo "2397"]
[BlackElo "2076"]
[Annotator "TA"]
[PlyCount "82"]
[EventDate "2024.11.28"]
[EventType "swiss"]
[EventCountry "ENG"]
[SourceTitle "playchess.com"]
[Source "ChessBase"]
[SourceQuality "1"]
[TimeControl "40/5400+30:1800+30"]

{[%evp 12,82,36,27,43,38,33,11,42,8,11,0,0,0,0,-3,0,-4,13,-5,0,0,0,0,0,0,0,0,0,-34,-33,-80,-32,-123,-121,-136,-135,-138,-142,-137,-132,-128,-137,-151,-97,-97,-112,-97,-97,-106,-106,-106,-106,-106,-109,-135,-143,-173,-185,-194,-194,-187,-184,-233,-195,-264,-116,-185,-97,-7192,-5689,-5616,-5682]} 1. e4 {[%emt 0:14:01]} c6 {[%emt 0:01:14]} 2. d4 {[%emt 0:00:05]} d5 {[%emt 0:00:06]} 3. Nc3 {[%emt 0:00:06]} dxe4 {[%emt 0:00:26]} 4. Nxe4 {[%emt 0:00:01]} Nf6 {[%emt 0:00:23]} 5. Nxf6+ {[%emt 0:00:05]} exf6 {[%emt 0:00:21]} 6. c3 {[%emt 0:00:04]} Bf5 {[%emt 0:01:43]} 7. Ne2 {[%emt 0:01:57]} g6 {[%emt 0:02:12]} 8. Ng3 {[%emt 0:01:08] Nxf5 would now be deadly.} Be6 {[%emt 0:01:24]} 9. Be3 {[%emt 0:05:19]} Bg7 {[%emt 0:02:36]} 10. Qd2 {[%emt 0:02:50]} O-O {[%emt 0:05:06]} 11. Bd3 {[%emt 0:01:09]} Re8 {[%emt 0:02:36]} 12. O-O {[%emt 0:00:33]} Nd7 {[%emt 0:02:09][%cal Bb8d7,Bd7b6,Bb6c4,Bc4b2][%mdl 32]} 13. Ne4 {[%emt 0:09:04]} Nb6 {[%emt 0:09:09]} 14. Bf4 {[%emt 0:05:41]} Bf8 {[%emt 0:11:03]} 15. Nc5 {[%emt 0:03:13]} Bxc5 {[%emt 0:03:29]} 16. dxc5 {[%emt 0:00:02]} Nc4 {[%emt 0:00:38]} 17. Qc2 {[%emt 0:09:10]} Nxb2 {[%emt 0:02:34]} 18. Bxg6 {[%emt 0:00:08]} hxg6 {[%emt 0:01:37]} 19. Qxb2 {[%emt 0:00:04]} b5 {[%emt 0:06:56]} 20. Rad1 {[%emt 0:05:16]} Bd5 {[%emt 0:01:29]} 21. Rd2 {[%emt 0:03:30]} (21. f3 $15 {feels stronger.}) 21... Kg7 {[%emt 0:02:16]} ({Black should try} 21... Qe7 $17 {[%cal Od5c4] ...Bc4! would now be deadly.} 22. Bd6 Qe6) 22. Rfd1 {[%emt 0:13:01]} (22. Be3 $15) 22... Qe7 $17 {[%emt 0:03:33][%cal Oe7e1] ( -> ...Qe1+!)} 23. f3 {[%emt 0:05:44]} Qxc5+ {[%emt 0:01:05]} 24. Kh1 {[%emt 0:00:03]} Re6 {[%emt 0:01:23]} 25. Qb4 {[%emt 0:01:39]} Qxb4 {[%emt 0:01:12]} 26. cxb4 {[%emt 0:00:01]} a5 {[%emt 0:00:40]} 27. a3 {[%emt 0:00:29]} axb4 {[%emt 0:00:40]} (27... a4 $142 28. h4 Rh8) 28. axb4 {[%emt 0:20:07]} Ra4 {[%emt 0:00:44]} 29. Rb2 {[%emt 0:00:00]} g5 {[%emt 0:03:55]} 30. Bg3 {[%emt 0:00:00]} f5 $36 {[%emt 0:00:16][%mdl 2048] White is under strong pressure.} 31. h3 {[%emt 0:00:00]} f4 {[%emt 0:00:46]} 32. Bf2 {[%emt 0:00:00]} f5 {[%emt 0:00:11][%cal Og5g4]} 33. Kg1 {[%emt 0:00:00] [#]} g4 $1 {[%emt 0:00:58][%mdl 512] Black is more active.} 34. hxg4 {[%emt 0:00:00]} (34. Rf1 gxh3) 34... fxg4 {[%emt 0:00:06]} 35. fxg4 {[%emt 0:00:00] [#]} Rg6 $1 {[%emt 0:00:23]} 36. Bc5 {[%emt 0:00:00]} Rxg4 {[%emt 0:00:25]} 37. Kf1 {[%emt 0:00:23]} (37. Bd6 $142) 37... Ra3 {[%emt 0:00:47]} 38. Rf2 {[%emt 0:01:34]} (38. Bd6 {is a better defense.}) 38... Rag3 {[%emt 0:00:53]} (38... f3 $19 {[%cal Rf3g2]} 39. g3 Rxg3) 39. Bd6 {[%emt 0:02:56]} (39. Rd4 $17) 39... Rxg2 {[%emt 0:00:21]} (39... Bxg2+ $19 40. Ke2 Re3+ 41. Kd2 Re4) 40. Rxf4 $2 {[%emt 0:00:35][%mdl 8192]} (40. Rxg2 $17 Bxg2+ 41. Kf2) 40... Rg1+ $19 {[%emt 0:00:26]} 41. Ke2 {[%emt 0:30:04]} R4g2+ {[%emt 0:30:06]} 0-1

[Event "XTX Markets London Masters 2024"]
[Site "London"]
[Date "2024.11.30"]
[Round "3.13"]
[White "Smirin, Ilia"]
[Black "Tashkinova, Sofiia"]
[Result "1-0"]
[ECO "A08"]
[WhiteElo "2574"]
[BlackElo "2066"]
[Annotator "TA"]
[PlyCount "61"]
[EventDate "2024.11.28"]
[EventType "swiss"]
[EventCountry "ENG"]
[SourceTitle "playchess.com"]
[Source "ChessBase"]
[SourceQuality "1"]
[TimeControl "40/5400+30:1800+30"]

{[%evp 16,61,58,60,83,76,83,78,68,58,66,66,64,67,102,93,97,109,95,91,146,150,216,238,214,150,378,355,361,233,264,303,475,465,488,488,479,478,454,442,1278,1248,1477,1020,29989,29990,29996,29997]} 1. e4 {[%emt 0:08:47]} e6 {[%emt 0:05:57]} 2. d3 {[%emt 0:01:04]} c5 {[%emt 0:02:08]} 3. Nf3 {[%emt 0:00:30]} d5 {[%emt 0:01:32]} 4. Qe2 {[%emt 0:01:02]} Nc6 {[%emt 0:03:33]} 5. g3 {[%emt 0:01:02]} g6 {[%emt 0:04:37]} 6. Bg2 {[%emt 0:11:58]} dxe4 {[%emt 0:02:17]} 7. dxe4 {[%emt 0:00:26]} Bg7 {[%emt 0:00:32]} 8. c3 {[%emt 0:01:45]} Nge7 {[%emt 0:01:19]} 9. O-O {[%emt 0:01:18]} Qc7 {[%emt 0:03:52]} 10. Na3 {[%emt 0:02:01]} a6 {[%emt 0:02:04]} 11. Be3 {[%emt 0:01:03]} b6 {[%emt 0:03:52] White is better.} 12. Rfd1 {[%emt 0:02:36]} O-O {[%emt 0:01:26]} 13. Nc4 {[%emt 0:00:10]} e5 {[%emt 0:08:22]} 14. a4 {[%emt 0:09:29][%cal Ob2b4] White has more active pieces.} Be6 {[%emt 0:02:45][%cal Oc6d4]} 15. Ng5 {[%emt 0:01:11] aiming for Nxe6.} Bxc4 {[%emt 0:01:42]} 16. Qxc4 {[%emt 0:00:04]} Na5 {[%emt 0:00:51]} 17. Qe2 {[%emt 0:01:19]} c4 {[%emt 0:05:03] [#]} (17... Nc8 $142) 18. Bh3 $1 $16 {[%emt 0:01:38][%cal Bg2h3,Bh3d7,Bd7e6,Be6f7][%mdl 32] Rd7 is the strong threat.} Qc6 {[%emt 0:07:19]} (18... Rad8 $16 19. Rxd8 Rxd8) 19. Rd7 $18 {[%emt 0:04:07]} Nc8 {[%emt 0:04:23]} 20. Qf3 {[%emt 0:08:47]} Ra7 $2 {[%emt 0:09:46] A mistake that costs the game.} (20... Nd6 $16) 21. Rad1 {[%emt 0:01:19][%cal Ba1d1,Bd1d7,Bd7b7][%mdl 32]} Rxd7 {[%emt 0:01:29]} 22. Bxd7 {[%emt 0:00:14]} Qc7 {[%emt 0:07:05] [#]} 23. Nxf7 {[%emt 0:06:08]} Nd6 {[%emt 0:03:59] [#]} (23... Rxf7 {was worth a try.} 24. Be6 Nc6 (24... Nd6 $2 25. Rxd6 Bf8 26. Rxb6 $18)) 24. Be6 $1 {[%emt 0:00:48]} Nxf7 {[%emt 0:00:34]} 25. Rd7 {[%emt 0:00:05]} Qc6 {[%emt 0:00:57]} 26. Bxf7+ {[%emt 0:01:18] This pair of bishops is nice.} Kh8 {[%emt 0:00:08]} 27. Qg4 {[%emt 0:00:57]} Nb7 {[%emt 0:02:43]} (27... Nb3 $142 28. Bd5 Qf6) 28. Bd5 {[%emt 0:00:21]} Qxa4 {[%emt 0:00:16]} 29. Rxb7 {[%emt 0:00:21]} Qa1+ {[%emt 0:00:58]} 30. Kg2 {[%emt 0:00:06]} Qxb2 {[%emt 0:00:08]} 31. Qd7 {[%emt 0:00:24] Weighted Error Value: White=0.19 (very precise) /Black=0.61.  Loses game:     	---       	Black=1      Mistake:       	---       	Black=4      Inaccurate:     	White=1     	Black=1      OK:         	White=11    	Black=4      Best:        	White=3     	Black=2      Strong:       	White=1     	---} 1-0

[Event "XTX Markets London Masters 2024"]
[Site "London"]
[Date "2024.11.30"]
[Round "3.14"]
[White "Van Zyl-Rudd, Jack"]
[Black "Petrov, Martin"]
[Result "0-1"]
[ECO "E59"]
[WhiteElo "2268"]
[BlackElo "2548"]
[Annotator "TA"]
[PlyCount "44"]
[EventDate "2024.11.28"]
[EventType "swiss"]
[EventCountry "ENG"]
[SourceTitle "playchess.com"]
[Source "ChessBase"]
[SourceQuality "1"]
[TimeControl "40/5400+30:1800+30"]

{[%evp 19,44,23,18,3,35,11,16,-57,-52,-66,-62,-62,-55,-66,-68,-162,-203,-201,-78,-325,-323,-504,-426,-509,-436,-416,-267]} 1. d4 {[%emt 0:00:01]} Nf6 {[%emt 0:00:11]} 2. c4 {[%emt 0:00:05]} e6 {[%emt 0:00:05]} 3. Nc3 {[%emt 0:00:04]} Bb4 {[%emt 0:00:36]} 4. e3 {[%emt 0:00:11]} O-O {[%emt 0:00:11]} 5. Bd3 {[%emt 0:00:04]} d5 {[%emt 0:02:31]} 6. Nf3 {[%emt 0:00:42]} c5 {[%emt 0:01:51]} 7. O-O {[%emt 0:00:26]} Nc6 {[%emt 0:00:15]} 8. a3 {[%emt 0:00:57]} Bxc3 {[%emt 0:00:07]} 9. bxc3 {[%emt 0:00:06]} dxc4 {[%emt 0:01:21]} 10. Bxc4 {[%emt 0:01:11]} Qc7 {[%emt 0:00:04]} 11. Qe2 {[%emt 0:02:59]} Rd8 {[%emt 0:04:46]} 12. Bb2 {[%emt 0:01:43]} e5 {[%emt 0:02:00]} 13. Rfd1 {[%emt 0:05:20]} (13. h3 $11) 13... Bg4 $1 $15 {[%emt 0:19:21] aiming for ...e4.} 14. h3 {[%emt 0:01:17]} Bh5 {[%emt 0:07:33]} 15. g4 {[%emt 0:01:07] [#]} (15. dxc5 $2 e4 16. Qe1 exf3 $19) 15... Nxg4 {[%emt 0:06:45]} 16. hxg4 {[%emt 0:00:13]} Bxg4 {[%emt 0:00:04] ...e4 is the strong threat.} 17. e4 {[%emt 0:01:36]} (17. dxc5 $2 e4 18. Qf1 Bxf3 $19 (18... exf3 $2 19. Kh1 $19)) (17. Bd3 $15 Re8 18. Be4 (18. dxc5 $2 e4 $19) (18. Bxh7+ Kh8 $15)) 17... exd4 $19 {[%emt 0:00:54]} 18. cxd4 {[%emt 0:00:51]} cxd4 {[%emt 0:00:43]} (18... Qf4 $19 {has better winning chances.} 19. Rd3 Nxd4 20. Bxd4 Rxd4 21. Nxd4 (21. Rxd4 $2 Bxf3 $19) 21... Bxe2 22. Nxe2 Qxe4) 19. Rd3 {[%emt 0:02:19] [#] Now White is beyond hope.} (19. e5 $17 {was the only defense.} Bxf3 20. Qxf3 Nxe5 21. Qf4) 19... Ne5 {[%emt 0:03:43]} 20. Bb3 {[%emt 0:00:46]} (20. Bd5 $142 Qe7 (20... Nxf3+ 21. Rxf3 Qb6 22. Kg2 $19) 21. Qd1) 20... Qb6 {[%emt 0:03:44] White must now prevent ...Qa6.} (20... Nxf3+ 21. Rxf3 Kh8 (21... Bxf3 22. Qxf3 Rd6 23. e5 $11) 22. Qd3 (22. Rxf7 $2 Qxf7 23. Bxf7 Bxe2 $19) 22... Bxf3 23. Qxf3 $15) 21. Kg2 {[%emt 0:04:32]} Nxf3 {[%emt 0:01:15]} (21... Bxf3+ 22. Rxf3 d3 23. Qe3 Nxf3 24. Qxb6 Nh4+ (24... axb6 25. Kxf3 Ra5 26. Rg1 $16) 25. Kg3 axb6 26. Kxh4 $11) 22. Rxf3 {[%emt 0:00:09][%cal Oe2d3]} Qxb3 {[%emt 0:00:18] Weighted Error Value: White=1.05/Black=0.37.  Loses game:     	White=1     	---        Mistake:       	White=3     	Black=1      Inaccurate:     	---       	Black=2      OK:         	White=2     	Black=2      Best:        	---       	Black=1      Strong:       	---       	Black=1      Brilliant:      	---       	Black=1} (22... Bxf3+ 23. Qxf3 Qg6+ 24. Kf1 $11) 0-1